bitfinex/quotes_BTCUSD_20240818
["timestamp","ask_amount","ask_price","bid_price","bid_amount"]
[1723996870292,1.4850271,59981.0,59980.0,0.0019075]
[1723996871481,1.63988349,59981.0,59980.0,0.0019075]
[1723996871693,1.4850271,59981.0,59980.0,0.0019075]
[1723996873537,1.9851871,59981.0,59980.0,0.0019075]
[1723996877034,1.5289801,59981.0,59980.0,0.0019075]
[1723996877261,1.6097801,59981.0,59980.0,0.0019075]
[1723996877670,1.5289801,59981.0,59980.0,0.0019075]
[1723996877870,1.6097801,59981.0,59980.0,0.0019075]
[1723996879936,1.5059801,59981.0,59980.0,0.0019075]
[1723996880144,1.5867801,59981.0,59980.0,0.0019075]
[1723996880269,1.510884,59981.0,59980.0,0.0019075]
[1723996880472,1.58679194,59981.0,59980.0,0.0019075]
[1723996880903,1.410884,59981.0,59980.0,0.0019075]
[1723996882352,1.510884,59981.0,59980.0,0.0019075]
[1723996882574,0.51316,59981.0,59980.0,0.1437075]
[1723996882970,0.51316,59981.0,59980.0,0.15474748]
[1723996883516,0.50616,59981.0,59980.0,0.15374748]
[1723996883922,0.50016,59981.0,59980.0,0.15374748]
[1723996884216,0.50016,59981.0,59980.0,0.15574748]
[1723996885365,0.616863,59981.0,59980.0,0.15574748]
[1723996886823,0.50016,59981.0,59980.0,0.15574748]
[1723996887041,0.50016,59981.0,59980.0,0.29293743]
[1723996887506,0.50016,59981.0,59980.0,0.17623243]
[1723996887723,0.50016,59981.0,59980.0,0.29293743]
[1723996887929,0.50016,59981.0,59980.0,0.17623243]
[1723996888126,0.50016,59981.0,59980.0,0.52634843]
[1723996888963,0.50016,59981.0,59980.0,0.52434843]
[1723996889398,0.50016,59981.0,59980.0,0.75975943]
[1723996889625,0.50016,59981.0,59980.0,0.75775943]
[1723996889827,0.50016,59981.0,59980.0,0.7627582]
[1723996891176,0.50016,59981.0,59980.0,0.7697582]
[1723996893603,0.50016,59981.0,59980.0,0.79921439]
[1723996893827,0.50016,59981.0,59980.0,0.7647582]
[1723996894049,0.50016,59981.0,59980.0,1.03262445]
[1723996894296,0.50016,59981.0,59980.0,1.02562445]
[1723996894728,0.50016,59981.0,59980.0,1.03762445]
[1723996895154,0.50016,59981.0,59980.0,1.04862445]
[1723996895371,0.50016,59981.0,59980.0,1.05062445]
[1723996895601,0.50016,59981.0,59980.0,1.04762445]
[1723996896432,0.50016,59981.0,59980.0,1.03762445]
[1723996896885,0.50016,59981.0,59980.0,1.04662445]
[1723996897302,0.50016,59981.0,59980.0,1.03462445]
[1723996897738,0.50016,59981.0,59980.0,1.04662445]
[1723996898191,0.50016,59981.0,59980.0,1.02561885]
[1723996898396,0.50016,59981.0,59980.0,1.03961885]
[1723996898608,0.50016,59981.0,59980.0,1.05361885]
[1723996905636,0.50016,59981.0,59980.0,1.02561885]
[1723996905842,0.50016,59981.0,59980.0,1.03961885]
[1723996906073,0.50016,59981.0,59980.0,1.01915868]
[1723996906270,0.50016,59981.0,59980.0,1.05359829]
[1723996906469,0.50016,59981.0,59980.0,1.13439829]
[1723996907819,0.50016,59981.0,59980.0,1.13439737]
[1723996909779,0.50016,59981.0,59980.0,1.12039737]
[1723996909983,0.50016,59981.0,59980.0,1.13439737]
[1723996910213,0.50016,59981.0,59980.0,1.16107577]
[1723996910636,0.50016,59981.0,59980.0,1.06548548]
[1723996910836,0.50016,59981.0,59980.0,1.14707151]
[1723996911048,0.50016,59981.0,59980.0,1.16107151]
[1723996912367,0.50016,59981.0,59980.0,1.342793]
[1723996913316,0.50016,59981.0,59980.0,1.328793]
[1723996914198,0.50016,59981.0,59980.0,1.314793]
[1723996914340,0.50016,59981.0,59980.0,1.328793]
[1723996914824,0.50016,59981.0,59980.0,1.2738835]
[1723996915060,0.50016,59981.0,59980.0,1.34279165]
[1723996915348,0.50016,59981.0,59980.0,1.32879165]
[1723996915819,0.50016,59981.0,59980.0,1.34279165]
[1723996916303,0.50016,59981.0,59980.0,1.40112626]
[1723996918137,0.50016,59981.0,59980.0,1.34279165]
[1723996918888,0.50016,59981.0,59980.0,1.3427996]
[1723996919383,0.50016,59981.0,59980.0,1.34279973]
[1723996920875,0.50016,59981.0,59980.0,1.26199973]
[1723996921289,0.50016,59981.0,59980.0,1.30447877]
[1723996923289,0.50016,59981.0,59980.0,1.35426824]
[1723996923730,0.50016,59981.0,59980.0,0.71423419]
[1723996924350,0.50016,59981.0,59980.0,0.47165553]
[1723996924561,0.50016,59981.0,59980.0,0.48082539]
[1723996925596,0.50016,59981.0,59980.0,0.39923334]
[1723996925798,0.50016,59981.0,59980.0,0.48084027]
[1723996926004,0.50016,59981.0,59980.0,0.71425127]
[1723996926204,0.50016,59981.0,59980.0,0.53062974]
[1723996927029,0.50016,59981.0,59980.0,0.76404074]
[1723996927237,0.50016,59981.0,59980.0,0.48084027]
[1723996927445,0.50016,59981.0,59980.0,0.71425127]
[1723996928285,0.50016,59981.0,59980.0,1.084181]
[1723996928495,0.50016,59981.0,59980.0,1.18375994]
[1723996928701,0.50016,59981.0,59980.0,1.2421108]
[1723996929741,0.50016,59981.0,59980.0,1.24210924]
[1723996930158,0.50016,59981.0,59980.0,1.09298315]
[1723996930352,0.50016,59981.0,59980.0,1.14252976]
[1723996932298,0.50016,59981.0,59980.0,1.26700343]
[1723996932525,0.50016,59981.0,59980.0,1.03359243]
[1723996933114,0.50016,59981.0,59980.0,1.26700343]
[1723996933765,0.50016,59981.0,59980.0,1.11787788]
[1723996933930,0.50016,59981.0,59980.0,1.46596607]
[1723996934146,0.50016,59981.0,59980.0,1.62964198]
[1723996934335,0.50016,59981.0,59980.0,1.51433739]
[1723996935890,0.50016,59981.0,59980.0,1.14440766]
[1723996936103,0.50016,59981.0,59980.0,1.51433506]
[1723996936718,0.50016,59981.0,59980.0,1.6858896]
[1723996937960,0.50016,59981.0,59980.0,1.57261885]
[1723996938176,0.50016,59981.0,59980.0,1.68588623]
[1723996939146,0.50016,59981.0,59980.0,1.6858872]
[1723996940176,0.50016,59981.0,59980.0,1.67002449]
[1723996941553,0.50016,59981.0,59980.0,1.59665007]
[1723996941751,0.50016,59981.0,59980.0,1.66581145]
[1723996942243,0.50016,59981.0,59980.0,1.66581021]
[1723996942663,0.50016,59981.0,59980.0,1.54173024]
[1723996942873,0.50016,59981.0,59980.0,1.66578378]
[1723996943739,0.50016,59981.0,59980.0,1.66577037]
[1723996946917,0.50016,59981.0,59980.0,1.66817507]
[1723996947574,0.50016,59981.0,59980.0,1.66818155]
[1723996947815,0.50016,59981.0,59980.0,1.66818672]
[1723996948373,0.50016,59981.0,59980.0,1.66818673]
[1723996950851,0.50016,59981.0,59980.0,1.66818569]
[1723996953475,0.50016,59981.0,59980.0,1.66918569]
[1723996954071,0.50016,59981.0,59980.0,1.81909451]
[1723996955260,0.50016,59981.0,59980.0,1.7550113]
[1723996955481,0.50016,59981.0,59980.0,1.81908328]
[1723996955811,0.50016,59981.0,59980.0,1.91927306]
[1723996956013,0.000825,59984.0,59983.0,0.884896]
[1723996956217,0.000825,59984.0,59983.0,1.83421767]
[1723996956218,1e-08,59984.0,59983.0,1.83421767]
[1723996956423,1e-08,59984.0,59983.0,2.59105324]
[1723996956635,1e-08,59984.0,59983.0,2.60104873]
[1723996957460,1e-08,59984.0,59983.0,2.59505324]
[1723996958506,1e-08,59984.0,59983.0,2.60505324]
[1723996958707,1e-08,59984.0,59983.0,2.07133963]
[1723996958915,1e-08,59984.0,59983.0,2.60505324]
[1723996959119,1e-08,59984.0,59983.0,2.07533963]
[1723996959340,1e-08,59984.0,59983.0,2.31202824]
[1723996959542,1e-08,59984.0,59983.0,2.31019025]
[1723996960028,1e-08,59984.0,59983.0,2.32046193]
[1723996960233,1e-08,59984.0,59983.0,2.09560597]
[1723996961758,1e-08,59984.0,59983.0,2.09960597]
[1723996962207,1e-08,59984.0,59983.0,2.09952049]
[1723996963337,1e-08,59984.0,59983.0,2.05704748]
[1723996963547,1e-08,59984.0,59983.0,2.09952049]
[1723996963749,1e-08,59984.0,59983.0,2.05704748]
[1723996963971,1e-08,59984.0,59983.0,1.96630632]
[1723996964159,1e-08,59984.0,59983.0,2.05700258]
[1723996964358,1e-08,59984.0,59983.0,2.09945301]
[1723996964584,1e-08,59984.0,59983.0,2.05700258]
[1723996964983,1e-08,59984.0,59983.0,2.09945326]
[1723996965184,1e-08,59984.0,59983.0,2.05700268]
[1723996965442,1e-08,59984.0,59983.0,1.96630632]
[1723996965660,1e-08,59984.0,59983.0,2.05700292]
[1723996966279,1e-08,59984.0,59983.0,2.28640192]
[1723996966481,1e-08,59984.0,59983.0,2.30940192]
[1723996966630,1e-08,59984.0,59983.0,2.30940193]
[1723996967018,1e-08,59992.0,59991.0,1.196156]
[1723996967222,1e-08,59992.0,59991.0,2.00903664]
[1723996967419,1e-08,59992.0,59991.0,2.16394962]
[1723996967623,1e-08,59992.0,59991.0,2.01455795]
[1723996967846,1e-08,59992.0,59991.0,1.93375795]
[1723996968024,1e-08,59992.0,59991.0,2.01455795]
[1723996968520,1e-08,59992.0,59991.0,2.0145595]
[1723996968907,1e-08,59992.0,59991.0,2.0305595]
[1723996969231,1e-08,59992.0,59991.0,2.08918406]
[1723996969550,1e-08,59992.0,59991.0,2.16388211]
[1723996969689,1e-08,59992.0,59991.0,2.17788211]
[1723996969890,1e-08,59992.0,59991.0,2.18800546]
[1723996970725,1e-08,59992.0,59991.0,2.43537346]
[1723996971143,0.0794,60006.0,60005.0,0.816595]
[1723996971340,0.0794,60006.0,60005.0,0.95226888]
[1723996971514,0.07921405,60006.0,60005.0,0.95776947]
[1723996973179,0.07921405,60006.0,60005.0,0.97176947]
[1723996973413,0.0629,60014.0,60008.0,0.233302]
[1723996973616,0.0629,60014.0,60013.0,0.349923]
[1723996974593,0.1423,60014.0,60013.0,0.116641]
[1723996975181,0.1423,60014.0,60013.0,0.12211497]
[1723996976562,0.1423,60014.0,60013.0,0.37139697]
[1723996978647,0.1423,60014.0,60013.0,0.60467897]
[1723996979634,0.1423,60014.0,60013.0,0.37139697]
[1723996981813,0.1423,60014.0,60013.0,0.62513829]
[1723996982030,0.1423,60014.0,60013.0,0.39185629]
[1723996983598,0.14217603,60014.0,60013.0,0.39185629]
[1723996983805,0.14217603,60014.0,60013.0,0.39185671]
[1723996985050,0.14217603,60014.0,60013.0,0.15857471]
[1723996985458,0.14217603,60014.0,60013.0,0.39185671]
[1723996987942,0.14217603,60014.0,60013.0,0.39185716]
[1723996988565,0.14300103,60014.0,60013.0,0.39185716]
[1723996990979,0.14300103,60014.0,60013.0,0.04193416]
[1723996991189,0.14300103,60014.0,60013.0,0.15857516]
[1723996991422,0.25964003,60014.0,60013.0,0.04193416]
[1723996991627,0.14300103,60014.0,60013.0,0.04193416]
[1723996991868,0.14300103,60014.0,60013.0,0.04193346]
[1723996993752,0.14300103,60014.0,60013.0,0.39185646]
[1723996994819,0.000825,60014.0,60013.0,0.39185646]
[1723996995218,0.000825,60014.0,60013.0,0.62513846]
[1723996995440,0.000825,60014.0,60013.0,0.659553]
[1723996996213,0.000825,60014.0,60013.0,0.65954875]
[1723996998664,0.000825,60014.0,60013.0,0.68621195]
[1723997000319,0.000825,60014.0,60013.0,0.65954875]
[1723997000511,0.000825,60014.0,60013.0,0.68621249]
[1723997001747,0.000825,60014.0,60013.0,0.68621962]
[1723997001944,0.000825,60014.0,60013.0,0.45293762]
[1723997002509,0.000825,60014.0,60013.0,0.68621962]
[1723997004379,0.000825,60014.0,60013.0,0.74991962]
[1723997004751,0.000825,60014.0,60013.0,0.74992017]
[1723997004951,0.000825,60014.0,60013.0,0.68622017]
[1723997005165,0.000825,60014.0,60013.0,0.68622032]
[1723997008241,0.000825,60014.0,60013.0,0.73608484]
[1723997009405,0.000825,60014.0,60013.0,0.7359422]
[1723997011164,0.000825,60014.0,60013.0,0.68607768]
[1723997011381,0.000825,60014.0,60013.0,0.76087447]
[1723997012206,0.000825,60014.0,60013.0,1.13061894]
[1723997013270,0.000825,60014.0,60013.0,1.05582215]
[1723997013679,0.000825,60014.0,60013.0,1.00094506]
[1723997013931,0.000825,60014.0,60013.0,1.05584208]
[1723997015192,0.000825,60014.0,60013.0,1.05674958]
[1723997016214,0.000825,60014.0,60013.0,1.15661914]
[1723997016835,0.000825,60014.0,60013.0,1.54950114]
[1723997017051,0.000825,60014.0,60013.0,1.60960114]
[1723997017679,0.000825,60014.0,60013.0,1.60260114]
[1723997017877,0.000825,60014.0,60013.0,1.59359952]
[1723997018093,0.000825,60014.0,60013.0,1.60059952]
[1723997018313,0.000825,60014.0,60013.0,1.60060001]
[1723997018513,0.000825,60014.0,60013.0,1.59360001]
[1723997018731,0.000825,60014.0,60013.0,1.53871119]
[1723997018984,0.000825,60014.0,60013.0,1.59360271]
[1723997019160,0.000825,60014.0,60013.0,1.60760271]
[1723997019568,0.000825,60014.0,60013.0,1.61676585]
[1723997019775,0.000825,60014.0,60013.0,1.6417173]
[1723997019984,0.000825,60014.0,60013.0,1.6277173]
[1723997020185,0.000825,60014.0,60013.0,1.6375754]
[1723997020389,0.000825,60014.0,60013.0,1.57001242]
[1723997020595,0.000825,60014.0,60013.0,1.63756921]
[1723997020797,0.000825,60014.0,60013.0,1.65156921]
[1723997021007,0.000825,60014.0,60013.0,1.66556921]
[1723997021416,0.000825,60014.0,60013.0,1.65156921]
[1723997021827,0.000825,60014.0,60013.0,1.71228988]
[1723997022232,0.000825,60014.0,60013.0,1.83710137]
[1723997022455,0.000825,60014.0,60013.0,1.82724327]
[1723997022644,0.000825,60014.0,60013.0,1.82724068]
[1723997023056,0.000825,60014.0,60013.0,1.82824068]
[1723997023267,0.000825,60014.0,60013.0,1.70242919]
[1723997023879,0.000825,60014.0,60013.0,1.68842919]
[1723997024082,0.000825,60014.0,60013.0,1.31869758]
[1723997024295,0.000825,60014.0,60013.0,1.69142367]
[1723997024709,0.000825,60014.0,60013.0,2.0970131]
[1723997024917,0.000825,60014.0,60013.0,2.08116834]
[1723997026148,0.000825,60014.0,60013.0,2.03870567]
[1723997026959,0.000825,60014.0,60013.0,2.02470567]
[1723997027169,0.000825,60014.0,60013.0,1.91998833]
[1723997027394,0.000825,60014.0,60013.0,2.03857766]
[1723997028010,0.000825,60014.0,60013.0,2.02457766]
[1723997028412,0.000825,60014.0,60013.0,2.02457758]
[1723997028627,0.000825,60014.0,60013.0,2.02457759]
[1723997028852,0.000825,60014.0,60013.0,2.03857759]
[1723997029141,0.000825,60014.0,60013.0,2.03857762]
[1723997029369,0.000825,60014.0,60013.0,1.41104108]
[1723997029602,0.000825,60014.0,60013.0,1.46933232]
[1723997030064,0.000825,60014.0,60013.0,1.45533232]
[1723997031434,0.000825,60014.0,60013.0,1.46933232]
[1723997031746,0.000825,60014.0,60013.0,1.34701663]
[1723997031955,0.000825,60014.0,60013.0,1.46933808]
[1723997032184,0.000825,60014.0,60013.0,1.46933815]
[1723997032832,0.000825,60014.0,60013.0,1.41104706]
[1723997033283,0.000825,60014.0,60013.0,1.41102651]
[1723997035085,0.146825,60014.0,60013.0,1.17774451]
[1723997035525,0.146825,60014.0,60013.0,0.83530212]
[1723997035729,0.146825,60014.0,60013.0,0.91014275]
[1723997036013,0.146825,60014.0,60013.0,0.43903174]
[1723997036232,0.146825,60014.0,60013.0,0.42503174]
[1723997036435,0.146825,60014.0,60013.0,0.41104911]
[1723997036671,0.146825,60014.0,60013.0,0.42504911]
[1723997036867,0.146825,60014.0,60013.0,0.51388974]
[1723997037094,0.14286068,60014.0,60013.0,0.51388974]
[1723997037292,0.14286068,60014.0,60013.0,0.74717174]
[1723997037518,0.14286068,60014.0,60013.0,0.71917174]
[1723997037727,0.14286068,60014.0,60013.0,0.67233111]
[1723997037980,0.14286068,60014.0,60013.0,0.74717814]
[1723997038181,0.14286068,60014.0,60013.0,0.51389614]
[1723997038393,0.14368568,60014.0,60013.0,0.88363835]
[1723997039491,0.14368568,60014.0,60013.0,1.11692035]
[1723997039692,0.14368568,60014.0,60013.0,0.88363835]
[1723997040735,0.07728568,60014.0,60013.0,0.88363425]
[1723997040937,0.07728568,60014.0,60013.0,1.11691625]
[1723997041162,0.07728568,60014.0,60013.0,1.14348701]
[1723997041385,0.07728568,60014.0,60013.0,0.88363425]
[1723997041592,0.07728568,60014.0,60013.0,1.06863994]
[1723997041819,0.000825,60014.0,60013.0,1.06863994]
[1723997042232,0.000825,60014.0,60013.0,0.83535794]
[1723997042445,0.000825,60014.0,60013.0,1.06863994]
[1723997043083,0.000825,60014.0,60013.0,1.13153994]
[1723997043500,0.000825,60014.0,60013.0,1.07665664]
[1723997043705,0.000825,60014.0,60013.0,1.06863992]
[1723997043916,0.000825,60014.0,60013.0,1.04206919]
[1723997044101,0.000825,60014.0,60013.0,1.06864074]
[1723997045553,0.000825,60014.0,60013.0,1.20255572]
[1723997046053,0.000825,60014.0,60013.0,1.31106842]
[1723997046501,0.000825,60014.0,60013.0,0.94134237]
[1723997046728,0.000825,60014.0,60013.0,1.31106023]
[1723997047654,0.000825,60014.0,60013.0,1.31110294]
[1723997047880,0.000825,60014.0,60013.0,1.45400294]
[1723997049579,0.000825,60014.0,60013.0,1.522195]
[1723997049811,0.000825,60014.0,60013.0,1.69374954]
[1723997050054,0.000825,60014.0,60013.0,1.82755943]
[1723997050279,0.000825,60014.0,60013.0,1.5307898]
[1723997050520,0.000825,60014.0,60013.0,1.66381373]
[1723997050841,0.000825,60014.0,60013.0,1.67781373]
[1723997051470,0.000825,60014.0,60013.0,1.66381373]
[1723997051895,0.000825,60014.0,60013.0,1.66381623]
[1723997053144,0.000825,60014.0,60013.0,1.67781623]
[1723997053578,0.000825,60014.0,60013.0,1.82748921]
[1723997054128,0.000825,60014.0,60013.0,1.78510217]
[1723997054842,0.000825,60014.0,60013.0,1.78505882]
[1723997055790,0.000825,60014.0,60013.0,1.69441943]
[1723997055981,0.000825,60014.0,60013.0,1.78506254]
[1723997056410,0.000825,60014.0,60013.0,1.78505832]
[1723997059336,0.000825,60014.0,60013.0,1.26571509]
[1723997059536,0.000825,60014.0,60013.0,1.78504955]
[1723997059790,0.000825,60014.0,60013.0,1.78504952]
[1723997059936,0.000825,60014.0,60013.0,1.78504947]
[1723997061903,0.000825,60014.0,60013.0,1.72102102]
[1723997062162,0.000825,60014.0,60013.0,1.78506447]
[1723997062389,0.000825,60014.0,60013.0,1.8274602]
[1723997064156,0.000825,60014.0,60013.0,1.82749325]
[1723997065552,0.000825,60014.0,60013.0,2.03909575]
[1723997065553,1e-08,60014.0,60013.0,2.03909575]
[1723997066055,1e-08,60014.0,60013.0,2.03509575]
[1723997066628,1e-08,60014.0,60013.0,2.03691343]
[1723997067031,1e-08,60014.0,60013.0,2.02291343]
[1723997067493,1e-08,60014.0,60013.0,2.05091343]
[1723997068111,1e-08,60014.0,60013.0,2.05090774]
[1723997068591,1e-08,60014.0,60013.0,2.05489747]
[1723997069609,1e-08,60014.0,60013.0,2.05089747]
[1723997069879,1e-08,60014.0,60013.0,1.96606437]
[1723997070092,1e-08,60014.0,60013.0,2.03907421]
[1723997070502,1e-08,60014.0,60013.0,2.03507421]
[1723997070736,1e-08,60014.0,60013.0,2.03907421]
[1723997070944,1e-08,60014.0,60013.0,2.01107421]
[1723997071154,1e-08,60014.0,60013.0,2.09287421]
[1723997071355,1e-08,60014.0,60013.0,2.09387421]
[1723997071558,1e-08,60014.0,60013.0,2.09287421]
[1723997071923,1e-08,60014.0,60013.0,2.09487421]
[1723997072123,1e-08,60014.0,60013.0,2.09487774]
[1723997072326,1e-08,60014.0,60013.0,2.09587774]
[1723997072504,1e-08,60014.0,60013.0,2.09587643]
[1723997072935,1e-08,60014.0,60013.0,2.01207643]
[1723997073135,1e-08,60014.0,60013.0,2.09487643]
[1723997073723,1e-08,60014.0,60013.0,1.94997643]
[1723997073945,1e-08,60014.0,60013.0,1.94897643]
[1723997074157,1e-08,60014.0,60013.0,1.93908473]
[1723997075579,1e-08,60014.0,60013.0,1.45344819]
[1723997075580,0.07650001,60014.0,60013.0,1.45344819]
[1723997076052,0.07650001,60014.0,60013.0,1.41106762]
[1723997076318,0.07650001,60014.0,60013.0,1.49186762]
[1723997076522,0.07650001,60014.0,60013.0,1.66989522]
[1723997076752,1e-08,60014.0,60013.0,1.66989522]
[1723997076975,1e-08,60014.0,60013.0,1.73399522]
[1723997078093,1e-08,60014.0,60013.0,1.58436073]
[1723997078307,1e-08,60014.0,60013.0,1.73399032]
[1723997078522,1e-08,60014.0,60013.0,1.73399239]
[1723997078714,1e-08,60014.0,60013.0,1.58436073]
[1723997078921,1e-08,60014.0,60013.0,2.00602341]
[1723997079123,1e-08,60014.0,60013.0,1.75691527]
[1723997079318,1e-08,60014.0,60013.0,1.77274141]
[1723997079612,1e-08,60014.0,60013.0,1.78674141]
[1723997079827,1e-08,60014.0,60013.0,1.77091527]
[1723997080066,1e-08,60014.0,60013.0,2.02002341]
[1723997080278,1e-08,60014.0,60013.0,2.00418445]
[1723997080508,0.000825,60017.0,60016.0,0.816448]
[1723997080729,0.000825,60017.0,60016.0,1.44763875]
[1723997080951,0.000825,60017.0,60016.0,1.57760229]
[1723997081184,0.000825,60017.0,60016.0,1.57760217]
[1723997081856,0.000825,60017.0,60016.0,1.59160217]
[1723997082292,0.000825,60017.0,60016.0,1.59160096]
[1723997083027,0.000825,60017.0,60016.0,1.60150458]
[1723997083243,0.000825,60017.0,60016.0,1.61550458]
[1723997083873,0.000825,60017.0,60016.0,1.60560096]
[1723997084359,0.000825,60017.0,60016.0,1.75522405]
[1723997084560,0.000825,60017.0,60016.0,1.60558994]
[1723997084789,0.000825,60017.0,60016.0,1.62140993]
[1723997085005,0.000825,60017.0,60016.0,1.60558994]
[1723997086663,0.000825,60017.0,60016.0,1.68528994]
[1723997086860,0.000825,60017.0,60016.0,1.685273]
[1723997087355,0.000825,60017.0,60016.0,1.605573]
[1723997088888,0.000825,60017.0,60016.0,1.60557005]
[1723997089174,0.000825,60017.0,60016.0,1.47254384]
[1723997089379,0.000825,60017.0,60016.0,1.60563547]
[1723997090438,0.000825,60017.0,60016.0,1.60564471]
[1723997091630,0.000825,60017.0,60016.0,2.10271735]
[1723997091885,0.000825,60017.0,60016.0,2.12316776]
[1723997093488,0.000825,60017.0,60016.0,2.35943876]
[1723997093700,0.000825,60017.0,60016.0,2.38285979]
[1723997093902,0.000825,60017.0,60016.0,2.51605238]
[1723997094074,0.000825,60017.0,60016.0,2.83692661]
[1723997095592,1e-08,60017.0,60016.0,2.83692661]
[1723997096993,1e-08,60017.0,60016.0,2.83692146]
[1723997100419,1e-08,60017.0,60016.0,2.75722146]
[1723997100641,1e-08,60017.0,60016.0,2.757327]
[1723997100853,1e-08,60017.0,60016.0,2.68525078]
[1723997101071,1e-08,60017.0,60016.0,2.6932155]
[1723997101479,1e-08,60017.0,60016.0,2.47221668]
[1723997102355,1e-08,60017.0,60016.0,2.61841668]
[1723997102775,1e-08,60017.0,60016.0,2.61541668]
[1723997103184,1e-08,60017.0,60016.0,2.62041668]
[1723997103387,1e-08,60017.0,60016.0,2.61641668]
[1723997104010,1e-08,60017.0,60016.0,2.6024183]
[1723997104486,1e-08,60017.0,60016.0,2.47848799]
[1723997104719,1e-08,60017.0,60016.0,2.60241848]
[1723997104955,1e-08,60017.0,60016.0,2.55157448]
[1723997105196,1e-08,60017.0,60016.0,2.60241848]
[1723997105702,1e-08,60017.0,60016.0,2.82340973]
[1723997105924,1e-08,60017.0,60016.0,2.82740973]
[1723997106140,1e-08,60017.0,60016.0,2.71992667]
[1723997106344,1e-08,60017.0,60016.0,2.82340865]
[1723997106762,1e-08,60017.0,60016.0,2.83740865]
[1723997106984,1e-08,60017.0,60016.0,2.83831615]
[1723997108746,1e-08,60017.0,60016.0,2.78348837]
[1723997108965,1e-08,60017.0,60016.0,2.83834141]
[1723997109805,1e-08,60017.0,60016.0,2.84234141]
[1723997110222,0.07593557,60025.0,60024.0,0.81634]
[1723997110420,0.07593557,60025.0,60024.0,1.27665729]
[1723997110638,0.07593557,60025.0,60024.0,1.28271702]
[1723997111805,0.07593557,60025.0,60024.0,1.29671702]
[1723997112539,0.07593557,60025.0,60024.0,1.36899508]
[1723997112792,0.07593557,60025.0,60024.0,1.36900838]
[1723997116691,0.07593557,60025.0,60024.0,1.32651244]
[1723997116915,0.07593557,60025.0,60024.0,1.3531714]
[1723997117355,0.07593557,60025.0,60024.0,1.35316762]
[1723997117568,0.07593557,60025.0,60024.0,1.3107235]
[1723997117779,0.07593557,60025.0,60024.0,1.35316762]
[1723997117956,0.07593557,60025.0,60024.0,1.3107235]
[1723997118411,0.07593557,60025.0,60024.0,1.35316762]
[1723997119562,0.07676057,60025.0,60024.0,1.35316762]
[1723997120817,0.07676057,60025.0,60024.0,1.35316819]
[1723997122029,0.07676057,60025.0,60024.0,1.35316815]
[1723997122383,0.07676057,60025.0,60024.0,1.28406495]
[1723997122657,0.07676057,60025.0,60024.0,1.3531679]
[1723997124719,0.07676057,60025.0,60024.0,1.22005024]
[1723997124924,0.07676057,60025.0,60024.0,1.35316813]
[1723997126172,0.07676057,60025.0,60024.0,1.3531742]
[1723997128613,0.07676057,60025.0,60024.0,1.24050287]
[1723997128816,0.07676057,60025.0,60024.0,1.36712822]
[1723997128817,0.07667327,60025.0,60024.0,1.36712822]
[1723997129046,0.07667327,60025.0,60024.0,1.38758202]
[1723997129233,0.07667327,60025.0,60024.0,1.31847531]
[1723997129434,0.07667327,60025.0,60024.0,1.35317638]
[1723997129639,0.07667327,60025.0,60024.0,1.38758299]
[1723997130068,0.14037327,60025.0,60024.0,1.15434299]
[1723997130285,0.14037327,60025.0,60024.0,1.11189598]
[1723997131397,0.14037327,60025.0,60024.0,1.11190083]
[1723997131615,0.14037327,60025.0,60024.0,1.08524025]
[1723997131837,0.14037327,60025.0,60024.0,1.11190248]
[1723997132061,0.14037327,60025.0,60024.0,1.11280998]
[1723997132731,0.000825,60025.0,60024.0,1.42684998]
[1723997132947,0.000825,60025.0,60024.0,1.43489366]
[1723997133168,0.000825,60025.0,60024.0,1.57689366]
[1723997133649,0.000825,60025.0,60024.0,1.56289366]
[1723997134098,0.000825,60025.0,60024.0,1.49879366]
[1723997134774,0.000825,60025.0,60024.0,1.43489366]
[1723997135459,0.000825,60025.0,60024.0,1.42089366]
[1723997135890,0.000825,60025.0,60024.0,1.4348863]
[1723997136779,0.000825,60025.0,60024.0,1.43487469]
[1723997139402,0.000825,60025.0,60024.0,1.12083469]
[1723997139631,0.146525,60025.0,60024.0,1.27062538]
[1723997139844,0.146525,60025.0,60024.0,1.17910425]
[1723997141428,0.146525,60025.0,60024.0,1.17910203]
[1723997142289,0.146525,60025.0,60024.0,0.59600203]
[1723997142509,0.146525,60025.0,60024.0,0.48612993]
[1723997142743,0.146525,60025.0,60024.0,0.72760036]
[1723997143208,0.146525,60025.0,60024.0,0.58874993]
[1723997143653,0.146525,60025.0,60024.0,0.70260513]
[1723997143869,0.146525,60025.0,60024.0,0.70260467]
[1723997144095,0.146525,60025.0,60024.0,0.68860467]
[1723997144329,0.146525,60025.0,60024.0,0.70260467]
[1723997144540,0.146525,60025.0,60024.0,0.688606]
[1723997144763,0.146525,60025.0,60024.0,0.6759446]
[1723997144987,0.146525,60025.0,60024.0,0.6759748]
[1723997145207,0.146525,60025.0,60024.0,0.68863602]
[1723997145632,0.146525,60025.0,60024.0,0.70263591]
[1723997146268,0.146525,60025.0,60024.0,0.6759748]
[1723997146489,0.146525,60025.0,60024.0,0.9092148]
[1723997146746,0.083425,60025.0,60024.0,1.169115]
[1723997146957,0.083425,60025.0,60024.0,1.06926933]
[1723997147621,0.083425,60025.0,60024.0,1.05526933]
[1723997148323,0.083425,60025.0,60024.0,1.06926933]
[1723997148560,0.083425,60025.0,60024.0,1.16908953]
[1723997148993,0.083425,60025.0,60024.0,1.15508953]
[1723997149241,0.083425,60025.0,60024.0,1.10022595]
[1723997149455,0.083425,60025.0,60024.0,1.15508691]
[1723997149693,0.083425,60025.0,60024.0,1.11442662]
[1723997149905,0.146525,60025.0,60024.0,1.15508691]
[1723997150350,0.146525,60025.0,60024.0,1.14108691]
[1723997150763,0.146525,60025.0,60024.0,1.15508691]
[1723997150977,0.146525,60025.0,60024.0,1.16908691]
[1723997151196,0.577179,60025.0,60024.0,0.11648839]
[1723997151421,0.577179,60025.0,60024.0,0.05542127]
[1723997151422,0.343943,60025.0,60024.0,0.05542127]
[1723997151668,0.577179,60025.0,60024.0,0.05542127]
[1723997152131,0.577179,60025.0,60024.0,0.04936154]
[1723997152613,0.577179,60025.0,60024.0,0.0289075]
[1723997153084,0.810415,60025.0,60024.0,0.0289075]
[1723997153547,0.810415,60025.0,60024.0,0.0149075]
[1723997153792,0.810415,60025.0,60024.0,0.0289075]
[1723997154306,1.12156568,60025.0,60024.0,0.0289075]
[1723997154552,1.12156568,60025.0,60024.0,0.0149075]
[1723997155288,1.12156568,60025.0,60024.0,0.0009075]